bitfinex-derivatives/quotes_ETHF0:USTF0_20241129
["timestamp","ask_amount","ask_price","bid_price","bid_amount"]
[1732856463427,3.73696429,3579.2,3578.9,3.84]
[1732856464024,4.01631429,3579.2,3578.9,3.84]
[1732856464224,0.27935,3579.1,3578.7,0.932]
[1732856464428,0.27935,3579.1,3578.7,5.41138]
[1732856464624,0.4436,3579.2,3578.7,5.132]
[1732856464625,3.73696429,3579.2,3578.7,5.132]
[1732856464925,0.27937,3579.0,3578.7,0.4772]
[1732856465624,0.27937,3579.0,3578.5,5.11987422]
[1732856465625,0.27938,3578.8,3578.5,0.4746]
[1732856466020,0.4558,3578.7,3578.5,0.4746]
[1732856466225,0.4558,3578.7,3578.5,0.754]
[1732856466527,0.4558,3578.7,3578.5,4.0746]
[1732856468433,0.73519,3578.7,3578.5,4.0746]
[1732856468630,0.73519,3578.7,3578.5,3.6]
[1732856468631,0.27939,3578.6,3578.5,3.6]
[1732856468933,2.7944,3578.6,3577.9,3.2078]
[1732856469132,0.27943,3578.2,3577.9,7.0078]
[1732856469833,0.4785,3578.1,3577.9,7.0078]
[1732856470229,0.75794,3578.1,3577.9,7.0078]
[1732856470728,0.4785,3578.1,3577.9,7.0078]
[1732856470926,0.4785,3578.1,3577.9,7.28725]
[1732856471229,0.4785,3578.1,3577.9,7.0078]
[1732856471929,0.75793,3578.1,3577.9,7.0078]
[1732856472432,0.4785,3578.1,3577.9,7.28725]
[1732856472635,0.4785,3578.1,3577.9,7.0078]
[1732856472837,0.27944,3578.0,3577.9,7.0078]
[1732856474327,0.27944,3578.0,3577.9,3.8]
[1732856475335,0.27944,3578.0,3577.4,0.73698]
[1732856475336,0.27947,3577.6,3577.4,0.73698]
[1732856475636,0.4745,3577.5,3577.4,4.4175]
[1732856475937,0.4745,3577.5,3577.4,4.69699]
[1732856477239,0.4533,3578.2,3577.4,4.4175]
[1732856477438,0.4585,3577.8,3577.5,0.27947]
[1732856477640,3.2078,3578.4,3577.7,2.13170955]
[1732856477935,0.4585,3578.6,3578.1,3.2078]
[1732856478143,0.4585,3578.6,3578.2,1.3554]
[1732856478331,0.4585,3578.6,3578.2,5.1754]
[1732856478743,0.4585,3578.6,3578.2,5.45482]
[1732856478940,0.73789,3578.6,3578.2,5.1754]
[1732856479144,0.2794,3578.5,3578.2,5.1754]
[1732856479442,0.7379,3578.6,3578.2,4.7227]
[1732856479643,0.4585,3578.6,3578.2,4.7227]
[1732856479840,0.2794,3578.5,3578.2,4.7227]
[1732856480032,0.4585,3578.6,3578.2,4.7227]
[1732856480237,0.4585,3578.6,3578.3,0.27941]
[1732856480434,0.4585,3578.6,3578.3,4.41941]
[1732856481538,0.4585,3578.6,3578.3,4.14]
[1732856482143,0.73789,3578.6,3578.3,4.14]
[1732856482639,0.4585,3578.6,3578.3,4.14]
[1732856483146,0.27941,3578.4,3578.3,4.14]
[1732856485340,0.27942,3578.3,3578.2,0.9027]
[1732856485537,0.27942,3578.3,3578.2,5.0627]
[1732856485947,0.27941,3578.4,3578.2,5.0627]
[1732856486141,0.4585,3578.6,3578.2,5.0627]
[1732856486534,0.27942,3578.3,3578.2,5.0627]
[1732856486740,0.4585,3578.6,3578.2,5.0627]
[1732856486941,0.4585,3578.6,3578.4,0.2794]
[1732856487140,0.4585,3578.6,3578.5,0.2794]
[1732856487442,0.27937,3578.9,3578.5,4.44]
[1732856487741,0.76287,3578.9,3578.5,4.44]
[1732856487949,0.76287,3578.9,3578.6,0.27939]
[1732856488241,0.76287,3578.9,3578.5,0.2794]
[1732856488444,0.76287,3578.9,3578.5,4.2894]
[1732856488948,0.4835,3578.9,3578.5,4.2894]
[1732856489240,0.4835,3578.9,3578.6,0.27939]
[1732856489444,0.27938,3578.8,3578.4,0.2794]
[1732856489644,0.27938,3578.8,3578.5,0.2794]
[1732856489840,0.4835,3578.9,3578.5,3.86]
[1732856490347,0.27939,3578.6,3578.5,3.86]
[1732856491043,0.2794,3578.5,3578.3,0.27941]
[1732856491442,0.27939,3578.7,3578.5,0.2794]
[1732856491648,0.5499,3578.9,3578.2,0.9027]
[1732856491845,0.5499,3578.9,3578.2,4.6327]
[1732856492048,0.2794,3578.5,3578.3,0.27941]
[1732856492345,0.2794,3578.5,3578.3,4.45941]
[1732856493344,0.5499,3578.4,3578.3,4.45941]
[1732856493848,0.5499,3578.4,3578.3,4.18]
[1732856494039,0.82931,3578.4,3578.3,4.18]
[1732856494245,0.5499,3578.4,3578.3,4.18]
[1732856495838,0.5499,3578.4,3578.3,4.45942]
[1732856496040,0.27939,3578.7,3578.4,0.27941]
[1732856496342,0.27939,3578.6,3578.3,0.79341]
[1732856496545,0.27939,3578.6,3578.3,5.12341]
[1732856497049,0.27939,3578.6,3578.3,4.844]
[1732856497249,0.81039,3578.7,3578.3,5.12341]
[1732856497846,0.27939,3578.6,3578.3,4.844]
[1732856498045,0.27939,3578.6,3578.3,5.12341]
[1732856498246,0.531,3578.7,3578.3,5.12341]
[1732856498449,0.81039,3578.7,3578.3,5.12341]
[1732856499245,0.81039,3578.7,3578.3,4.844]
[1732856499647,0.81039,3578.7,3578.3,5.12341]
[1732856500546,0.81039,3578.7,3578.3,4.844]
[1732856500956,0.531,3578.7,3578.3,4.844]
[1732856501250,2.72553062,3578.7,3578.3,4.844]
[1732856501455,3.00492062,3578.7,3578.3,5.12341]
[1732856501646,2.72553062,3578.7,3578.3,4.844]
[1732856501852,2.72553062,3578.7,3578.5,0.2794]
[1732856502053,0.531,3578.7,3578.5,0.2794]
[1732856502445,2.72553062,3578.7,3578.5,0.2794]
[1732856503051,0.531,3578.7,3578.5,0.2794]
[1732856503457,2.72553062,3578.7,3578.5,0.2794]
[1732856503953,2.72553062,3578.7,3578.4,0.2794]
[1732856504159,2.72553062,3578.7,3578.4,4.4394]
[1732856505561,2.19453062,3578.5,3578.4,4.16]
[1732856505859,2.19453062,3578.5,3578.4,4.43941]
[1732856506352,2.19453062,3578.5,3578.4,4.16]
[1732856507859,2.19453062,3578.5,3578.4,4.43941]
[1732856508461,3.29336429,3578.6,3578.4,4.43941]
[1732856508768,2.19583906,3578.5,3578.4,4.43941]
[1732856509069,2.19583906,3578.5,3578.4,4.99231]
[1732856511463,3.29336429,3578.6,3578.4,4.99231]
[1732856511758,2.19677371,3578.5,3578.4,4.99231]
[1732856512761,2.19683724,3578.5,3578.4,4.99231]
[1732856512955,2.1968828,3578.5,3578.4,4.99231]
[1732856514557,3.29336429,3578.6,3578.5,0.2794]
[1732856514757,3.29336429,3578.6,3578.5,4.4994]
[1732856514963,0.531,3578.7,3578.5,4.4994]
[1732856515163,3.29559833,3578.6,3578.5,4.4994]
[1732856516460,3.82659833,3578.7,3578.5,4.22]
[1732856516858,3.29559833,3578.8,3578.6,1.03107805]
[1732856517058,3.2078,3579.4,3578.6,9.18696227]
[1732856517059,2.19675615,3578.7,3578.6,9.18696227]
[1732856517263,2.19675615,3578.8,3578.6,9.18696227]
[1732856517462,2.19675615,3578.8,3578.7,0.27938]
[1732856517761,2.19675615,3578.8,3578.7,4.05]
[1732856517962,3.29559833,3578.9,3578.7,4.05]
[1732856518262,2.715207,3578.8,3578.7,4.05]
[1732856518572,2.715207,3578.8,3578.7,4.32938]
[1732856518866,2.71511406,3578.8,3578.7,4.32938]
[1732856519267,0.5185,3578.8,3578.7,4.32938]
[1732856519766,3.81409833,3578.8,3578.7,4.05]
[1732856520372,3.29559833,3578.8,3578.7,4.32938]
[1732856520565,3.29559833,3578.9,3578.8,0.27938]
[1732856520862,3.29559833,3579.0,3578.9,0.27937]
[1732856521063,3.29559833,3579.1,3578.9,5.93697805]
[1732856521267,3.29559833,3579.2,3579.1,0.27935]
[1732856521464,3.29559833,3579.2,3579.1,5.56042805]
[1732856521465,3.29480953,3579.2,3579.1,5.56042805]
[1732856521672,2.19626514,3579.2,3579.1,5.56042805]
[1732856521865,2.19626514,3579.2,3579.1,8.35402805]
[1732856522065,2.19626514,3579.3,3579.2,0.27935]
[1732856522259,2.19626514,3579.3,3579.2,3.99935]
[1732856522671,2.19626514,3579.3,3579.2,6.79295]
[1732856522873,2.19626514,3579.4,3579.2,6.5136]
[1732856523069,2.1959143,3579.5,3579.4,0.27933]
[1732856523371,3.29480953,3580.2,3580.1,0.27927]
[1732856523572,3.29480953,3580.3,3580.1,3.93]
[1732856523969,3.29480953,3580.2,3579.9,1.03107805]
[1732856524164,3.29480953,3580.2,3579.9,4.0]
[1732856524376,0.5609,3580.1,3579.9,4.0]
[1732856524770,0.5609,3580.1,3579.9,4.27929]
[1732856525575,0.5609,3580.1,3580.0,0.27928]
[1732856525767,0.5609,3580.1,3580.0,4.13928]
[1732856527370,0.5609,3580.1,3580.0,3.86]
[1732856527770,0.84017,3580.1,3579.6,3.2078]
[1732856527975,0.84017,3580.1,3579.6,6.3778]
[1732856528278,0.84017,3580.1,3579.6,6.65711]
[1732856528474,0.5723,3580.0,3579.6,6.3778]
[1732856528673,0.5723,3580.0,3579.7,0.2793]
[1732856528880,0.5723,3580.0,3579.7,4.6793]
[1732856529379,0.5723,3580.0,3579.8,0.2793]
[1732856529569,0.5723,3580.0,3579.8,0.9293]
[1732856531677,0.5609,3580.1,3579.8,0.65]
[1732856532081,0.5609,3580.1,3580.0,0.27928]
[1732856532278,0.5609,3580.1,3579.9,0.27929]
[1732856532484,0.5609,3580.1,3579.9,4.44929]
[1732856532785,0.5609,3580.1,3579.9,4.17]
[1732856533283,0.5609,3580.1,3580.0,0.27928]
[1732856533479,0.5609,3580.1,3580.0,4.29928]
[1732856534181,6.50260953,3580.7,3580.0,4.29928]
[1732856534182,3.2078,3580.7,3580.3,0.27926]
[1732856534380,0.5895,3580.6,3580.4,2.67885845]
[1732856534578,0.5895,3580.6,3580.4,7.11810845]
[1732856534984,0.5895,3580.6,3580.4,6.83885845]
[1732856535283,0.86874,3580.6,3580.4,4.7082]
[1732856535482,2.7928,3580.5,3580.0,3.2078]
[1732856535689,2.82883845,3580.2,3579.1,3.2078]
[1732856535985,3.2078,3579.5,3578.5,4.2528]
[1732856536175,1.1815,3579.4,3578.5,5.215]
[1732856536379,1.1815,3579.4,3578.6,2.13065845]
[1732856536583,1.1815,3579.4,3579.3,0.27934]
[1732856536783,1.1815,3579.4,3579.0,2.13065845]
[1732856536975,1.1815,3579.4,3579.1,0.27935]
[1732856537177,1.1815,3579.4,3579.3,0.27934]
[1732856537482,0.5895,3579.4,3579.2,0.84334]
[1732856537679,0.5895,3579.4,3579.2,0.95334]
[1732856538082,0.5895,3579.4,3579.3,0.27934]
[1732856538479,0.5895,3579.4,3579.2,0.84334]
[1732856538681,0.5895,3579.4,3579.2,5.15334]
[1732856539385,0.5895,3579.4,3579.2,4.874]
[1732856539686,0.582,3579.8,3579.4,0.27932]
[1732856539886,0.85431,3579.7,3579.2,4.05114]
[1732856540184,0.85431,3579.7,3579.2,4.954]
[1732856540185,0.575,3579.7,3579.2,4.954]
[1732856540696,0.575,3579.7,3579.3,0.27933]
[1732856541186,0.575,3579.7,3579.3,4.62933]
[1732856542088,0.575,3579.7,3579.3,4.35]
[1732856542391,0.85431,3579.7,3579.3,4.35]
[1732856542784,0.575,3579.7,3579.3,0.27934]
[1732856542986,0.85431,3579.7,3579.3,4.08]
[1732856543191,0.575,3579.7,3579.3,4.35933]
[1732856543596,0.575,3579.7,3579.3,4.08]
[1732856543791,0.575,3579.7,3579.4,0.27932]
[1732856544199,0.575,3579.7,3579.2,3.7718]
[1732856544391,0.575,3579.7,3579.2,8.1018]
[1732856544592,0.27927,3580.2,3579.4,2.13065845]
[1732856544791,0.27927,3580.2,3579.5,0.5614]
[1732856544792,0.5844,3580.2,3579.5,0.5614]
[1732856545097,0.27928,3580.0,3579.6,0.27931]
[1732856545299,0.27928,3580.1,3579.6,4.47931]
[1732856545601,0.5844,3580.2,3579.6,4.2]
[1732856546098,0.27929,3579.9,3579.6,4.2]
[1732856546502,0.27929,3580.0,3579.6,4.47931]
[1732856546698,0.27929,3580.0,3579.7,0.27931]
[1732856546890,3.2078,3580.1,3579.7,3.63]
[1732856547094,0.27928,3580.1,3579.7,3.9093]
[1732856547295,0.5844,3580.2,3579.7,3.63]
[1732856547491,0.86367,3580.2,3579.8,0.5959]
[1732856547705,0.86367,3580.2,3579.9,0.27929]
[1732856547999,0.27928,3580.0,3579.9,4.04]
[1732856548902,0.27928,3580.0,3579.3,0.27933]
[1732856548903,0.27932,3579.6,3579.3,0.27933]
[1732856549099,0.27932,3579.6,3579.3,3.16933]
[1732856549298,3.29480953,3580.0,3579.3,3.16933]
[1732856549299,0.5888,3579.5,3579.4,0.27933]
[1732856549505,0.5888,3579.5,3579.4,4.68933]
[1732856549705,0.27928,3580.0,3579.7,0.2793]
[1732856550002,0.86809,3579.9,3579.7,0.2793]
[1732856550204,0.86809,3579.9,3579.6,0.27931]
[1732856550396,0.2793,3579.8,3579.5,0.27932]
[1732856550597,0.27931,3579.7,3579.5,3.93932]
[1732856551200,0.598,3579.8,3579.5,3.93932]
[1732856551599,0.598,3579.8,3579.5,3.66]
[1732856551800,0.27931,3579.6,3579.5,3.66]
[1732856552500,0.5888,3579.9,3579.6,0.27931]
[1732856552700,0.8681,3579.9,3579.6,0.27931]
[1732856552901,0.2793,3579.8,3579.6,0.27931]
[1732856553303,0.5888,3579.9,3579.6,0.27931]
[1732856553507,0.5888,3579.9,3579.8,0.2793]
[1732856553807,0.5888,3579.9,3579.8,3.9593]
[1732856554402,3.29480953,3580.2,3580.0,0.27928]
[1732856554603,3.85200953,3580.3,3580.1,0.27927]
[1732856554808,4.13126953,3580.3,3580.1,4.15]
[1732856555004,0.83646,3580.3,3580.1,4.15]
[1732856555307,4.13126953,3580.3,3580.1,4.15]
[1732856556605,3.85200953,3580.3,3580.1,4.15]
[1732856556804,3.29480953,3580.6,3580.1,4.15]
[1732856557108,3.85800953,3580.6,3580.2,0.5503]
[1732856557307,0.5632,3580.6,3580.4,0.27924]
[1732856557511,3.85800953,3580.6,3580.5,0.5785]
[1732856557701,3.29480953,3580.7,3580.5,4.58774]
[1732856557899,3.29480953,3580.7,3580.5,4.3085]
[1732856558410,3.29480953,3580.8,3580.5,4.58774]
[1732856558710,3.29480953,3580.6,3580.5,4.58774]
[1732856558905,3.29480953,3580.6,3580.5,4.3085]
[1732856559613,3.29480953,3580.7,3580.5,4.3085]
[1732856559799,3.29480953,3580.8,3580.7,0.27923]
[1732856560003,0.562,3580.9,3580.7,4.72923]
[1732856560004,3.29480953,3580.9,3580.7,4.72923]
[1732856560709,3.29480953,3580.9,3580.7,4.45]
[1732856561413,3.29480953,3581.0,3580.7,4.45]
[1732856561916,3.29480953,3581.0,3580.9,0.27921]
[1732856562215,3.29480953,3581.1,3580.9,4.75921]
[1732856562416,3.29480953,3581.1,3581.0,0.5637]
[1732856562711,3.29480953,3581.1,3581.0,4.7837]
[1732856563317,3.29480953,3581.2,3581.0,4.7837]
[1732856563508,3.29480953,3581.2,3581.1,0.5821]
[1732856563810,3.29480953,3581.2,3581.1,4.5021]
[1732856565216,3.85680953,3581.3,3581.1,4.7813]
[1732856565513,3.85680953,3581.3,3581.1,4.5021]
[1732856566109,3.29480953,3581.2,3581.1,4.5021]
[1732856566416,4.13599953,3581.3,3581.1,4.5021]
[1732856566615,0.84119,3581.3,3581.1,4.5021]
[1732856566918,0.84118,3581.3,3581.1,4.5021]
[1732856567110,0.562,3581.3,3581.1,4.5021]
[1732856568507,0.562,3581.3,3581.1,4.7813]
[1732856569116,0.562,3581.3,3581.1,4.5021]
[1732856569813,0.27919,3581.2,3581.1,3.92]
[1732856574919,1.41699,3581.3,3581.1,4.1992]
[1732856575121,0.562,3581.3,3581.2,0.27919]
[1732856575417,0.562,3581.3,3581.2,4.55579]
[1732856576318,0.562,3581.3,3581.2,4.2766]
[1732856576921,0.562,3581.3,3581.2,4.55579]
[1732856577924,2.25228628,3581.6,3581.3,0.27918]
[1732856578118,0.5972,3581.5,3581.4,41.4057]
[1732856578420,0.5972,3581.5,3581.4,45.5557]
[1732856579021,0.27917,3581.4,3581.2,0.5666]
[1732856579225,0.5972,3581.5,3581.2,4.4366]
[1732856579417,0.87637,3581.5,3581.2,4.71579]
[1732856579724,0.87637,3581.5,3581.2,4.4366]
[1732856579923,0.5972,3581.5,3581.2,4.4366]
[1732856580118,0.87637,3581.5,3581.2,4.4366]
[1732856580621,13.76999701,3582.6,3581.3,1.1609]
[1732856580622,3.29480953,3582.0,3581.3,1.1609]
[1732856580816,4.74052953,3582.1,3581.7,0.27915]
[1732856581013,3.29480953,3581.9,3581.8,0.5657]
[1732856581420,3.29480953,3581.9,3581.8,4.2957]
[1732856581622,3.29480953,3581.9,3581.8,4.57484]
[1732856582017,3.29480953,3582.0,3581.8,4.57484]
[1732856582420,3.29480953,3582.0,3581.9,0.6085]
[1732856582726,0.5639,3582.1,3581.9,4.16]
[1732856583029,4.96279226,3582.1,3581.9,4.16]
[1732856583319,0.27913,3582.0,3581.9,4.16]
[1732856583720,3.27935237,3582.0,3581.9,4.16]
[1732856584422,3.27935237,3582.0,3581.9,4.43913]
[1732856584626,0.5639,3582.1,3581.9,4.43913]
[1732856584627,3.84325237,3582.1,3581.9,4.43913]
[1732856584827,3.84325237,3582.1,3581.9,4.16]
[1732856585024,3.55848237,3582.0,3581.9,4.16]
[1732856585225,3.55848237,3582.0,3581.6,0.27916]
[1732856585523,3.55848237,3582.0,3581.6,4.04916]
[1732856585721,3.55848237,3582.0,3581.7,0.27915]
[1732856585924,3.55848237,3582.0,3581.7,4.52915]
[1732856586125,3.27935237,3582.0,3581.7,4.25]
[1732856586419,0.27914,3581.8,3581.7,4.25]
[1732856587724,4.42425237,3581.9,3581.4,6.17752845]
[1732856587923,0.27916,3581.6,3581.4,9.82835845]
[1732856588422,0.5818,3581.5,3581.4,7.6977]
[1732856588622,0.5818,3581.5,3581.4,7.97687]
[1732856589622,0.5818,3581.5,3581.4,7.6977]
[1732856589926,0.86097,3581.5,3581.4,7.1378]
[1732856590126,0.86097,3581.5,3581.4,3.2078]
[1732856591019,0.86097,3581.5,3581.4,3.48697]
[1732856591020,0.5818,3581.5,3581.4,3.48697]
[1732856591221,0.5818,3581.5,3581.4,3.2078]
[1732856592523,4.11709237,3581.9,3581.4,7.85697]
[1732856592732,0.5908,3581.8,3581.6,0.27915]
[1732856592927,0.5908,3581.8,3581.6,4.15]
[1732856593125,0.5908,3581.8,3581.6,4.42915]
[1732856593322,0.5908,3581.8,3581.6,4.15]
[1732856593837,0.27913,3582.0,3581.6,4.42916]
[1732856594131,3.55847237,3582.1,3581.7,0.27915]
[1732856594324,0.5908,3582.0,3581.8,40.8]
[1732856594532,0.5908,3582.0,3581.8,44.44]
[1732856594719,0.86993,3582.0,3581.8,44.44]
[1732856595727,0.5908,3582.0,3581.8,44.71914]
[1732856596228,0.5908,3582.0,3581.8,44.44]
[1732856597627,3.27935237,3582.1,3581.8,44.44]
[1732856597826,3.55846237,3582.2,3581.8,44.71914]
[1732856598029,0.27911,3582.2,3581.8,44.71914]
[1732856598425,3.55846237,3582.2,3581.8,44.71914]
[1732856600027,0.27913,3582.0,3581.8,44.44]
[1732856600233,0.27913,3581.9,3581.8,44.44]
[1732856600824,0.87233,3581.9,3581.8,44.44]
[1732856601032,0.5932,3581.9,3581.8,44.44]
[1732856601336,0.87233,3581.9,3581.8,44.44]
[1732856601532,0.87233,3581.9,3581.8,3.64]
[1732856601733,1.25421751,3582.0,3581.8,9.62465845]
[1732856601930,4.39889226,3582.5,3581.9,2.792]
[1732856602130,0.5932,3582.7,3582.3,2.40975845]
[1732856602441,0.5932,3582.7,3582.3,6.01975845]
[1732856602732,0.5932,3582.7,3582.3,5.74065845]
[1732856602929,4.39889226,3583.0,3582.3,5.74065845]
[1732856603233,4.39889226,3583.1,3582.7,2.13065845]
[1732856603436,4.39889226,3583.2,3582.9,0.27905]
[1732856603634,7.62248226,3583.3,3582.9,3.73]
[1732856604137,4.39889226,3583.0,3582.9,3.73]
[1732856605138,4.67794226,3583.1,3582.9,3.73]
[1732856605434,4.39889226,3583.1,3582.9,3.73]
[1732856605937,4.67793226,3583.1,3582.9,3.73]
[1732856606135,4.39889226,3583.1,3582.9,3.73]
[1732856606338,4.67794226,3583.1,3582.9,3.73]
[1732856606537,4.39889226,3583.1,3582.8,0.5648]
[1732856606740,0.27907,3582.7,3582.6,3.2078]
[1732856607034,0.27907,3582.8,3582.6,5.7878]
[1732856607235,0.88357,3582.7,3582.6,5.7878]
[1732856608027,0.27911,3582.2,3582.1,3.2078]
[1732856608228,0.27914,3581.8,3581.7,0.6088]
[1732856608428,4.39889226,3582.4,3581.7,4.9088]
[1732856608429,0.27914,3581.9,3581.7,4.9088]
[1732856608643,0.5899,3581.8,3581.7,5.18795]
[1732856610232,0.5899,3581.8,3581.7,4.9088]
[1732856611033,0.5899,3581.8,3581.7,5.18795]
[1732856612236,0.5899,3581.8,3581.7,45.7088]
[1732856613331,0.5899,3581.8,3581.7,45.98795]
[1732856613633,3.2078,3582.5,3582.1,0.27911]
[1732856613936,3.2078,3582.5,3582.1,6.12976845]
[1732856614237,3.2078,3582.5,3582.1,5.85065845]
[1732856614438,3.2078,3582.5,3582.2,0.27911]
[1732856614641,3.2078,3582.5,3582.2,3.77]
[1732856614840,3.2078,3582.5,3582.2,4.04911]
[1732856615652,0.5579,3582.6,3582.2,3.77]
[1732856615943,0.5579,3582.6,3582.3,0.2791]
[1732856616137,0.5579,3582.6,3582.4,0.5722]
[1732856616336,0.5579,3582.6,3582.4,4.2222]
[1732856616532,3.2078,3583.0,3582.5,2.13065845]
[1732856616737,3.48685,3583.0,3582.6,0.27908]
[1732856616934,3.2078,3583.0,3582.6,3.7]
[1732856617245,3.2078,3583.0,3582.7,41.07907]
[1732856617438,0.5611,3583.1,3582.7,44.89907]
[1732856618735,0.5611,3583.1,3582.7,44.62]
[1732856619346,0.5611,3583.1,3582.7,44.89907]
[1732856619347,0.84014,3583.1,3582.7,44.89907]
[1732856619640,0.84014,3583.1,3582.7,44.62]
[1732856619841,0.84014,3583.1,3582.7,44.89907]
[1732856620235,0.5611,3583.1,3582.7,44.62]
[1732856621042,0.84014,3583.1,3582.7,44.89907]
[1732856621539,0.84014,3583.1,3582.8,0.27906]
[1732856621740,0.84014,3583.1,3582.8,4.46906]
[1732856622642,0.5611,3583.1,3582.9,0.27906]
[1732856622841,0.5611,3583.1,3582.9,4.72906]
[1732856623039,0.84015,3583.1,3582.9,4.45]
[1732856623430,0.27905,3583.0,3582.9,4.45]
[1732856624543,4.67794226,3583.0,3582.9,4.45]
[1732856625240,7.88574226,3583.0,3582.9,4.45]
[1732856626341,3.48685,3583.0,3582.9,4.45]
[1732856626934,6.27805,3583.0,3582.9,4.45]
[1732856627144,0.27909,3582.5,3582.4,0.5722]
[1732856627442,0.27909,3582.5,3582.4,4.7922]
[1732856627642,0.27909,3582.5,3582.4,45.5922]
[1732856628146,0.27909,3582.5,3582.4,45.02]
[1732856628534,2.02729,3582.5,3582.4,45.02]
[1732856629850,2.02729,3582.5,3582.4,4.22]
[1732856630151,2.02729,3582.5,3581.8,0.27914]
[1732856630152,0.27912,3582.1,3581.8,0.27914]
[1732856630344,3.48691,3582.3,3581.8,3.69]
[1732856630649,3.2078,3582.3,3581.8,3.69]
[1732856630851,0.5768,3582.5,3582.3,0.2791]
[1732856631143,0.5768,3582.5,3582.4,0.2791]
[1732856631342,0.5768,3582.5,3582.4,4.8691]
[1732856631545,0.5768,3582.5,3582.4,45.6691]
[1732856632550,0.5768,3582.5,3582.4,45.9482]
[1732856632944,0.5768,3582.5,3582.4,45.6691]
[1732856633647,0.85589,3582.5,3582.4,45.6691]
[1732856634348,0.85589,3582.5,3582.4,45.09]
[1732856635453,0.5768,3582.5,3582.4,44.55]
[1732856637350,0.5768,3582.5,3582.4,44.8291]
[1732856637647,0.5768,3582.5,3582.4,44.55]
[1732856639851,0.5768,3582.5,3582.4,44.8291]
[1732856640155,0.5768,3582.5,3582.4,44.55]
[1732856640858,4.97569226,3582.5,3582.4,44.55]
[1732856641355,0.5768,3582.5,3582.4,44.55]
[1732856642550,4.39889226,3582.7,3582.4,44.55]
[1732856642755,4.98459226,3582.8,3582.5,2.98433845]
[1732856642958,0.5857,3582.8,3582.5,7.19433845]
[1732856643161,2.19254242,3582.6,3582.5,7.19433845]
[1732856643962,2.19254242,3582.6,3582.5,7.19434845]
[1732856644164,2.19254242,3582.6,3582.5,6.09232038]
[1732856645170,2.19254242,3582.6,3582.5,6.65412038]
[1732856645566,2.19254242,3582.7,3582.6,0.27908]
[1732856645768,2.19254242,3582.7,3582.6,5.35771038]
[1732856646468,2.19254242,3582.7,3582.6,8.14891038]
[1732856648868,2.19254242,3582.8,3582.6,11.07763038]
[1732856649173,2.19254242,3582.8,3582.7,0.27907]
[1732856649374,4.39889226,3583.0,3582.7,6.7212]
[1732856649666,4.39889226,3583.0,3582.9,1.30769038]
[1732856649873,4.39889226,3583.0,3582.9,5.75769038]
[1732856650576,4.39889226,3583.0,3582.9,8.54889038]
[1732856651066,4.39889226,3583.1,3582.9,8.54889038]
[1732856651267,4.38604035,3583.1,3582.9,5.47863038]
[1732856651473,4.38604035,3583.1,3583.0,3.07025]
[1732856651668,4.38604035,3583.1,3583.0,6.69025]
[1732856652870,4.38604035,3583.1,3583.0,3.62]
[1732856653075,9.2209582,3583.2,3583.0,3.62]
[1732856653374,0.5763,3583.1,3583.0,3.62]
[1732856653573,6.0339582,3583.1,3583.0,3.62]
[1732856655374,6.0339582,3583.1,3583.0,3.89905]
[1732856655568,6.0339582,3583.1,3583.0,3.62]
[1732856655976,6.3129982,3583.1,3583.0,3.62]
[1732856658079,6.0339582,3583.1,3583.0,3.89905]
[1732856658279,6.3129982,3583.1,3583.0,3.62]
[1732856658475,6.0339582,3583.1,3583.0,3.89905]
[1732856658681,0.5763,3583.1,3583.0,3.89905]
[1732856659683,0.85534,3583.1,3583.0,3.62]
[1732856662686,0.5763,3583.1,3582.8,1.30769038]
[1732856662991,0.5763,3583.1,3582.8,5.48769038]
[1732856662992,4.38827953,3582.9,3582.8,5.48769038]
[1732856663489,4.96797953,3582.9,3582.8,5.48769038]
[1732856666085,5.24703953,3582.9,3582.8,5.20863038]
[1732856666287,4.96797953,3582.9,3582.8,5.48769038]
[1732856666785,5.24703953,3582.9,3582.8,5.20863038]
[1732856667692,4.96797953,3582.9,3582.8,5.20863038]
[1732856667989,3.29114776,3582.9,3582.8,5.48769038]
[1732856668292,2.1938913,3582.9,3582.8,5.48769038]
[1732856670290,2.1938913,3582.9,3582.8,8.27889038]
[1732856671587,2.1938913,3582.9,3582.8,4.18]
[1732856671789,0.27906,3582.9,3582.8,4.18]
[1732856671998,6.32210942,3582.9,3582.8,4.18]
[1732856672498,6.32110841,3582.9,3582.8,4.18]
[1732856672694,0.83676,3582.9,3582.8,4.18]
[1732856673589,3.3489,3582.9,3582.7,1.02863038]
[1732856673789,3.48686,3582.8,3582.7,1.02863038]
[1732856674187,6.27806,3582.8,3582.7,1.02863038]
[1732856675089,0.27909,3582.5,3582.4,1.02863038]
[1732856675294,2.7912,3582.5,3581.7,4.95080347]
[1732856675496,2.19405218,3581.9,3581.8,0.87584]
[1732856675794,2.19405218,3581.9,3581.8,5.13584]
[1732856676491,2.19437548,3581.9,3581.8,6.16447038]
[1732856676696,3.29108947,3582.0,3581.9,0.27913]
[1732856676893,3.29108947,3582.0,3581.9,3.91913]
[1732856677088,0.5747,3582.3,3581.9,3.91913]
[1732856677089,3.29108947,3582.1,3581.9,6.57187351]
[1732856677288,3.29108947,3582.1,3582.0,1.30776038]
[1732856677492,3.29108947,3582.1,3582.0,5.36776038]
[1732856677794,3.29108947,3582.2,3582.1,0.27912]
[1732856678092,3.29108947,3582.2,3582.1,5.39775038]
[1732856678296,3.29108947,3582.3,3582.1,9.00951681]
[1732856678489,3.29140229,3582.3,3582.2,40.8]
[1732856678694,4.38811929,3582.4,3582.3,0.2791]
[1732856678889,4.38811929,3582.4,3582.3,4.6039]